[Event "16th HSG Open-A 2022"]
[Site "Hilversum"]
[Date "2022.06.17"]
[Round "1.6"]
[White "Elgersma, Onno"]
[Black "Straat, Evert-Jan"]
[Result "1-0"]
[ECO "C49"]
[WhiteElo "2303"]
[BlackElo "2034"]
[Annotator "TA"]
[PlyCount "81"]
[EventDate "2022.06.17"]
[EventCountry "NED"]
[SourceTitle "playchess.com"]
[Source "ChessBase"]
[SourceQuality "1"]
[TimeControl "6600+10"]

{[%evp 10,81,10,8,104,37,47,43,45,37,130,128,191,184,187,157,184,164,216,163,156,150,152,124,135,131,127,117,140,147,145,142,172,172,166,132,133,120,147,167,251,264,279,282,277,277,269,270,303,302,302,299,387,386,502,502,497,491,501,493,482,477,754,749,803,787,1173,1174,1135,1106,1010,1031,1075,1017]} 1. e4 {[%emt 0:00:04]} e5 {[%emt 0:00:24]} 2. Nf3 {[%emt 0:00:05]} Nf6 {[%emt 0:00:11]} 3. Nc3 {[%emt 0:02:37]} Nc6 {[%emt 0:00:12]} 4. Bb5 {[%emt 0:01:41]} Bb4 {[%emt 0:00:30]} 5. d3 {[%emt 0:01:24]} d6 {[%emt 0:01:45]} 6. O-O {[%emt 0:01:02]} Bg4 {[%emt 0:03:36] Recently 6...Bxc3 got a lot of attention. C49: Four Knights: 4 Bb5 Bb4.} (6... O-O $11 {keeps the balance.}) 7. h3 {[%emt 0:15:35]} (7. Nd5 $16 Bc5 8. h3 Bxf3 9. Qxf3) 7... Bd7 $14 {[%emt 0:03:07] [#]} 8. Ne2 $146 {[%emt 0:02:39][%cal Bc3e2,Be2g3,Bg3f5][%mdl 32]} ({Predecessor:} 8. Bg5 Nd4 9. Bxd7+ Qxd7 10. Nxd4 exd4 11. Ne2 c5 12. a3 Ba5 13. Rb1 O-O 14. b4 cxb4 15. axb4 {1-0 (50) Godel,W-Mougin,L Elancourt 2004}) 8... h6 {[%emt 0:10:59] White is slightly better.} 9. Ng3 {[%emt 0:00:22]} Nd4 {[%emt 0:05:27]} (9... O-O $14) 10. Bxd7+ {[%emt 0:04:13]} Qxd7 {[%emt 0:00:29]} (10... Nxd7 $16 11. Nxd4 exd4) 11. Nxd4 $18 {[%emt 0:03:42]} exd4 {[%emt 0:00:08]} 12. Qf3 {[%emt 0:00:15][%cal Oe4e5] Threatens to win with e5!} Bc5 {[%emt 0:06:09]} 13. Nf5 {[%emt 0:02:12]} Rg8 {[%emt 0:09:48]} (13... Kf8 $142 14. Bd2 (14. Qg3 Rh7 $16) 14... Qe6) 14. Nxg7+ {[%emt 0:02:04]} Rxg7 {[%emt 0:00:12]} 15. Qxf6 {[%emt 0:00:05]} Rg6 {[%emt 0:00:14]} 16. Qf5 {[%emt 0:00:25]} ({Stronger than} 16. Qh8+ Ke7 17. Qxa8 Qxh3 $11) 16... O-O-O {[%emt 0:05:19]} 17. Qxd7+ {[%emt 0:00:38]} Kxd7 {[%emt 0:00:19]} 18. f4 {[%emt 0:01:08][%cal Bf2f4,Bf4f5][%mdl 32]} h5 {[%emt 0:02:11]} 19. f5 {[%emt 0:00:39]} Rg7 {[%emt 0:01:37]} 20. Bh6 {[%emt 0:00:19]} Rg3 {[%emt 0:01:45]} 21. Bf4 {[%emt 0:00:19]} Rg7 {[%emt 0:00:48]} 22. Kf2 {[%emt 0:01:51]} h4 {[%emt 0:06:21]} 23. Rh1 {[%emt 0:01:56]} Rdg8 {[%emt 0:03:09]} 24. Rag1 {[%emt 0:00:30]} c6 {[%emt 0:02:30]} (24... Rh7 $142 25. Kf3 Rgh8) 25. g4 {[%emt 0:03:24]} f6 {[%emt 0:00:19]} 26. Kf3 {[%emt 0:00:16]} Bb6 {[%emt 0:01:53]} 27. Rg2 {[%emt 0:00:50]} Bd8 {[%emt 0:00:39]} 28. Rhg1 {[%emt 0:00:34]} Be7 {[%emt 0:01:45]} 29. c3 {[%emt 0:00:35]} dxc3 {[%emt 0:05:11]} 30. bxc3 {[%emt 0:00:05]} c5 {[%emt 0:00:14]} 31. d4 {[%emt 0:00:46]} cxd4 {[%emt 0:01:07]} 32. cxd4 {[%emt 0:00:05] White is clearly winning.} Rc8 {[%emt 0:00:15]} 33. Rc1 {[%emt 0:00:21] Against Rc3+} Rxc1 {[%emt 0:01:23]} 34. Bxc1 {[%emt 0:00:06][%mdl 4096] Endgame KRB-KRB} Rg8 {[%emt 0:00:09]} 35. Rc2 {[%emt 0:00:20]} Rg7 {[%emt 0:03:20]} (35... a5 $142 36. Bf4 Rc8 37. Rxc8 Kxc8) 36. Bf4 {[%emt 0:00:21]} Rg8 {[%emt 0:01:43]} 37. e5 {[%emt 0:00:26]} dxe5 {[%emt 0:00:30]} 38. dxe5 {[%emt 0:00:05]} fxe5 {[%emt 0:00:12]} 39. Bxe5 {[%emt 0:00:06]} Bd8 {[%emt 0:00:08]} 40. Rd2+ {[%emt 0:01:46]} Ke7 {[%emt 0:00:55]} 41. Ke4 {[%emt 0:00:26] Weighted Error Value: White=0.09 (flawless) /Black=0.35} 1-0

[Event "16th HSG Open-A 2022"]
[Site "Hilversum"]
[Date "2022.06.17"]
[Round "1.7"]
[White "Van Pel, Gerben"]
[Black "Wiersma, Eelke"]
[Result "0-1"]
[ECO "D43"]
[WhiteElo "2018"]
[BlackElo "2299"]
[Annotator "NA RC"]
[PlyCount "56"]
[EventDate "2022.06.17"]
[EventCountry "NED"]
[SourceTitle "playchess.com"]
[Source "ChessBase"]
[SourceQuality "1"]
[TimeControl "6600+10"]

1. d4 {[%emt 0:00:03]} d5 {[%emt 0:00:14]} 2. c4 {[%emt 0:00:10]} c6 {[%emt 0:00:11]} 3. Nf3 {[%emt 0:00:26]} Nf6 {[%emt 0:00:12]} 4. Nc3 {[%emt 0:00:05]} e6 {[%emt 0:00:13]} 5. Qc2 {[%emt 0:01:51]} Nbd7 {[%emt 0:01:42]} 6. g4 {[%emt 0:03:37]} dxc4 {[%emt 0:07:47]} 7. g5 {[%emt 0:00:35]} Nd5 {[%emt 0:00:12]} 8. e4 {[%emt 0:00:19]} Nxc3 {[%emt 0:02:58]} 9. bxc3 {[%emt 0:01:11]} b5 {[%emt 0:00:17]} 10. h4 {[%emt 0:03:53]} Bb7 {[%emt 0:05:00]} 11. Be3 {[%emt 0:01:49]} c5 {[%emt 0:03:58]} 12. Rd1 {[%emt 0:03:43]} cxd4 {[%emt 0:02:04]} 13. Nxd4 {[%emt 0:03:57]} Qa5 {[%emt 0:01:56]} 14. Bg2 {[%emt 0:04:27]} Nc5 {[%emt 0:02:32]} 15. O-O {[%emt 1:26:34]} a6 {[%emt 0:05:39]} 16. f4 {[%emt 0:00:00]} O-O-O {[%emt 0:01:39]} 17. e5 {[%emt 0:00:00]} Qc7 {[%emt 0:00:24]} 18. Rb1 {[%emt 0:00:00]} Be7 {[%emt 0:10:10]} 19. a4 {[%emt 0:00:00]} Nxa4 {[%emt 0:03:38]} 20. Nxb5 {[%emt 0:00:00]} axb5 {[%emt 0:00:09]} 21. Rxb5 {[%emt 0:00:00]} Bxg2 {[%emt 0:04:40]} 22. Qxa4 {[%emt 0:00:00]} Bb7 {[%emt 0:11:24]} 23. Qa2 {[%emt 0:00:00]} Rd5 {[%emt 0:16:41]} 24. Rb2 {[%emt 0:00:00]} Rhd8 {[%emt 0:03:03]} 25. Bd4 {[%emt 0:00:00]} Ra5 {[%emt 0:03:19]} 26. Qb1 {[%emt 0:00:00]} Qc6 {[%emt 0:01:13]} 27. Kh2 {[%emt 0:00:00]} Rb5 {[%emt 0:00:39]} 28. Rxb5 {[%emt 0:00:00]} Qg2# {[%emt 0:00:24]} 0-1

[Event "16th HSG Open-A 2022"]
[Site "Hilversum"]
[Date "2022.06.17"]
[Round "1.8"]
[White "Van Foreest, Machteld"]
[Black "Galje, Hans"]
[Result "1/2-1/2"]
[ECO "C07"]
[WhiteElo "2287"]
[BlackElo "2020"]
[Annotator "NA RC"]
[PlyCount "82"]
[EventDate "2022.06.17"]
[EventCountry "NED"]
[SourceTitle "playchess.com"]
[Source "ChessBase"]
[SourceQuality "1"]
[TimeControl "6600+10"]

1. e4 {[%emt 0:00:03]} e6 {[%emt 0:00:07]} 2. d4 {[%emt 0:00:51]} d5 {[%emt 0:00:06]} 3. Nd2 {[%emt 0:00:04]} c5 {[%emt 0:00:11]} 4. exd5 {[%emt 0:00:04]} Qxd5 {[%emt 0:00:07]} 5. dxc5 {[%emt 0:00:06]} Bxc5 {[%emt 0:02:35]} 6. Ngf3 {[%emt 0:02:44]} Nf6 {[%emt 0:02:33]} 7. Bc4 {[%emt 0:02:06]} Qd8 {[%emt 0:01:44]} 8. O-O {[%emt 0:00:12]} O-O {[%emt 0:00:27]} 9. Qe2 {[%emt 0:02:45]} Nc6 {[%emt 0:01:34]} 10. Nb3 {[%emt 0:02:13]} Be7 {[%emt 0:01:55]} 11. Rd1 {[%emt 0:06:24]} Qc7 {[%emt 0:00:29]} 12. c3 {[%emt 0:04:11]} b6 {[%emt 0:13:12]} 13. Nbd4 {[%emt 0:10:10]} Nxd4 {[%emt 0:06:11]} 14. Rxd4 {[%emt 0:03:45]} Bb7 {[%emt 0:04:40]} 15. Bf4 {[%emt 0:05:23]} Qc6 {[%emt 0:00:42]} 16. b4 {[%emt 0:09:31]} Rad8 {[%emt 0:05:05]} 17. Rad1 {[%emt 0:01:51]} Rxd4 {[%emt 0:03:39]} 18. Rxd4 {[%emt 0:04:28]} Rd8 {[%emt 0:03:38]} 19. Qd3 {[%emt 0:05:57]} Rxd4 {[%emt 0:01:38]} 20. Qxd4 {[%emt 0:00:06]} Qe4 {[%emt 0:08:17]} 21. h3 {[%emt 0:02:20]} Qxd4 {[%emt 0:03:25]} 22. Nxd4 {[%emt 0:00:27]} Ne4 {[%emt 0:00:43]} 23. Ne2 {[%emt 0:01:54]} Bf6 {[%emt 0:02:05]} 24. b5 {[%emt 0:04:12]} e5 {[%emt 0:10:02]} 25. Bh2 {[%emt 0:06:12]} Nd6 {[%emt 0:00:29]} 26. Bd3 {[%emt 0:00:06]} e4 {[%emt 0:01:16]} 27. Bc2 {[%emt 0:00:05]} Nxb5 {[%emt 0:00:14]} 28. c4 {[%emt 0:00:03]} Nd4 {[%emt 0:02:43]} 29. Nxd4 {[%emt 0:00:05]} Bxd4 {[%emt 0:00:05]} 30. Bb8 {[%emt 0:00:03]} a5 {[%emt 0:01:58]} 31. Bd6 {[%emt 0:00:25]} g6 {[%emt 0:03:23]} 32. Bb3 {[%emt 0:00:21]} Kg7 {[%emt 0:00:18]} 33. Kf1 {[%emt 0:00:13]} f5 {[%emt 0:00:49]} 34. Ke2 {[%emt 0:00:39]} Kf6 {[%emt 0:00:23]} 35. f3 {[%emt 0:00:23]} exf3+ {[%emt 0:02:38]} 36. gxf3 {[%emt 0:00:03]} g5 {[%emt 0:00:38]} 37. Bc2 {[%emt 0:01:31]} h5 {[%emt 0:02:09]} 38. Bc7 {[%emt 0:00:32]} g4 {[%emt 0:03:53]} 39. fxg4 {[%emt 0:01:09]} hxg4 {[%emt 0:01:40]} 40. hxg4 {[%emt 0:00:05]} fxg4 {[%emt 0:00:07]} 41. Bf4 {[%emt 0:00:19]} Bf3+ {[%emt 0:19:12]} 1/2-1/2

[Event "16th HSG Open-A 2022"]
[Site "Hilversum"]
[Date "2022.06.17"]
[Round "1.10"]
[White "Nagtegaal, Kees"]
[Black "Helmond, Frans"]
[Result "1-0"]
[ECO "A15"]
[WhiteElo "2277"]
[BlackElo "2001"]
[Annotator "NA RC"]
[PlyCount "85"]
[EventDate "2022.06.17"]
[EventCountry "NED"]
[SourceTitle "playchess.com"]
[Source "ChessBase"]
[SourceQuality "1"]
[TimeControl "6600+10"]

1. c4 {[%emt 0:06:50]} Nf6 {[%emt 0:00:13]} 2. g3 {[%emt 0:00:07]} d5 {[%emt 0:00:58]} 3. cxd5 {[%emt 0:00:06]} Nxd5 {[%emt 0:01:37]} 4. Bg2 {[%emt 0:00:17]} c6 {[%emt 0:01:50]} 5. Nf3 {[%emt 0:06:36]} g6 {[%emt 0:01:22]} 6. O-O {[%emt 0:01:35]} Bg7 {[%emt 0:00:05]} 7. d4 {[%emt 0:03:52]} Nd7 {[%emt 0:06:16]} 8. e4 {[%emt 0:01:04]} N5b6 {[%emt 0:00:36]} 9. Nc3 {[%emt 0:01:26]} Nf6 {[%emt 0:00:42]} 10. Qe2 {[%emt 0:02:39]} O-O {[%emt 0:09:46]} 11. Rd1 {[%emt 0:00:40]} Bg4 {[%emt 0:00:27]} 12. h3 {[%emt 0:01:21]} Bxf3 {[%emt 0:00:20]} 13. Bxf3 {[%emt 0:00:09]} Qc8 {[%emt 0:00:39]} 14. e5 {[%emt 0:06:03]} Nfd5 {[%emt 0:00:33]} 15. Ne4 {[%emt 0:00:56]} f5 {[%emt 0:03:54]} 16. Nc5 {[%emt 0:04:42]} e6 {[%emt 0:06:12]} 17. Bd2 {[%emt 0:03:10]} Re8 {[%emt 0:06:01]} 18. b4 {[%emt 0:02:41]} Nd7 {[%emt 0:04:13]} 19. Nb3 {[%emt 0:03:40]} Qd8 {[%emt 0:04:17]} 20. Na5 {[%emt 0:01:03]} Qb6 {[%emt 0:01:49]} 21. Nc4 {[%emt 0:06:01]} Qc7 {[%emt 0:20:24]} 22. Nd6 {[%emt 0:02:58]} Reb8 {[%emt 0:03:19]} 23. Rac1 {[%emt 0:09:18]} Bf8 {[%emt 0:00:49]} 24. Bxd5 {[%emt 0:00:30]} exd5 {[%emt 0:00:15]} 25. Bf4 {[%emt 0:01:20]} Nb6 {[%emt 0:08:00]} 26. Re1 {[%emt 0:04:19]} Qd8 {[%emt 0:13:40]} 27. h4 {[%emt 0:02:38]} h6 {[%emt 0:01:03]} 28. Qe3 {[%emt 0:02:02]} Be7 {[%emt 0:05:22]} 29. Bxh6 {[%emt 0:00:55]} Bxd6 {[%emt 0:00:14]} 30. exd6 {[%emt 0:00:06]} Qxd6 {[%emt 0:00:10]} 31. Bf4 {[%emt 0:00:23]} Qd7 {[%emt 0:01:14]} 32. Bxb8 {[%emt 0:00:23]} Rxb8 {[%emt 0:00:02]} 33. Qe6+ {[%emt 0:01:33]} Qxe6 {[%emt 0:04:36]} 34. Rxe6 {[%emt 0:00:05]} Kg7 {[%emt 0:00:15]} 35. Re7+ {[%emt 0:00:23]} Kh6 {[%emt 0:00:04]} 36. Rce1 {[%emt 0:00:16]} Nc4 {[%emt 0:00:19]} 37. Rd7 {[%emt 0:00:24]} Nd2 {[%emt 0:00:53]} 38. Kg2 {[%emt 0:00:50]} Ne4 {[%emt 0:00:26]} 39. f3 {[%emt 0:00:12]} Nf6 {[%emt 0:00:05]} 40. Rf7 {[%emt 0:00:11]} Ng8 {[%emt 0:00:19]} 41. g4 {[%emt 0:01:16]} fxg4 {[%emt 0:00:30]} 42. fxg4 {[%emt 0:00:04]} a5 {[%emt 0:00:13]} 43. Kg3 {[%emt 0:00:28]} 1-0

[Event "16th HSG Open-A 2022"]
[Site "Hilversum"]
[Date "2022.06.17"]
[Round "1.11"]
[White "Buijten, Arno"]
[Black "Pham, Khoi"]
[Result "0-1"]
[ECO "D45"]
[WhiteElo "2006"]
[BlackElo "2291"]
[Annotator "NA RC"]
[PlyCount "74"]
[EventDate "2022.06.17"]
[EventCountry "NED"]
[SourceTitle "playchess.com"]
[Source "ChessBase"]
[SourceQuality "1"]
[TimeControl "6600+10"]

1. Nf3 {[%emt 0:00:07]} d5 {[%emt 0:00:10]} 2. d4 {[%emt 0:00:12]} Nf6 {[%emt 0:00:25]} 3. c4 {[%emt 0:00:25]} c6 {[%emt 0:00:05]} 4. Nc3 {[%emt 0:00:07]} e6 {[%emt 0:00:05]} 5. e3 {[%emt 0:00:51]} Nbd7 {[%emt 0:00:06]} 6. Qc2 {[%emt 0:02:49]} Bd6 {[%emt 0:00:07]} 7. b3 {[%emt 0:01:32]} O-O {[%emt 0:03:18]} 8. Bd3 {[%emt 0:01:47]} e5 {[%emt 0:00:25]} 9. dxe5 {[%emt 0:00:17]} Nxe5 {[%emt 0:00:05]} 10. Nxe5 {[%emt 0:01:03]} Bxe5 {[%emt 0:00:05]} 11. Bb2 {[%emt 0:00:28]} Bg4 {[%emt 0:08:37]} 12. O-O {[%emt 0:06:42]} Qe7 {[%emt 0:06:15]} 13. Rae1 {[%emt 0:03:46]} Rad8 {[%emt 0:05:22]} 14. f4 {[%emt 0:07:20]} Bc7 {[%emt 0:06:34]} 15. cxd5 {[%emt 0:06:04]} cxd5 {[%emt 0:00:05]} 16. Nb5 {[%emt 0:02:17]} Ba5 {[%emt 0:02:13]} 17. Ba3 {[%emt 0:03:55]} Bb4 {[%emt 0:00:56]} 18. Bxb4 {[%emt 0:02:30]} Qxb4 {[%emt 0:00:05]} 19. f5 {[%emt 0:09:51]} Bxf5 {[%emt 0:00:11]} 20. a3 {[%emt 0:09:06]} Bxd3 {[%emt 0:00:31]} 21. Qxd3 {[%emt 0:00:08]} Qe4 {[%emt 0:01:49]} 22. Qd2 {[%emt 0:03:33]} a6 {[%emt 0:01:34]} 23. Nd4 {[%emt 0:00:36]} Rfe8 {[%emt 0:00:10]} 24. Rf4 {[%emt 0:02:01]} Qg6 {[%emt 0:00:37]} 25. Ref1 {[%emt 0:02:44]} Ne4 {[%emt 0:12:48]} 26. Qe2 {[%emt 0:05:40]} Nd6 {[%emt 0:01:46]} 27. R1f3 {[%emt 0:10:03]} Re5 {[%emt 0:04:10]} 28. h4 {[%emt 0:04:46]} Rde8 {[%emt 0:02:42]} 29. Kh2 {[%emt 0:01:25]} Re4 {[%emt 0:00:47]} 30. Rg3 {[%emt 0:03:03]} Qxg3+ {[%emt 0:01:01]} 31. Kxg3 {[%emt 0:00:44]} Rxe3+ {[%emt 0:00:05]} 32. Qf3 {[%emt 0:03:02]} Rxf3+ {[%emt 0:01:09]} 33. Rxf3 {[%emt 0:00:44]} Re4 {[%emt 0:00:27]} 34. Nf5 {[%emt 0:00:25]} Nxf5+ {[%emt 0:00:27]} 35. Rxf5 {[%emt 0:00:02]} Re3+ {[%emt 0:00:44]} 36. Kf4 {[%emt 0:02:47]} Rxb3 {[%emt 0:00:08]} 37. Rxd5 {[%emt 0:00:07]} g6 {[%emt 0:00:07]} 0-1

[Event "16th HSG Open-A 2022"]
[Site "Hilversum"]
[Date "2022.06.17"]
[Round "1.12"]
[White "Grutter, Tim"]
[Black "Schleipfenbauer, Bent"]
[Result "1-0"]
[ECO "B36"]
[WhiteElo "2241"]
[BlackElo "1981"]
[Annotator "NA RC"]
[PlyCount "85"]
[EventDate "2022.06.17"]
[EventCountry "NED"]
[SourceTitle "playchess.com"]
[Source "ChessBase"]
[SourceQuality "1"]
[TimeControl "6600+10"]

1. e4 {[%emt 0:00:06]} c5 {[%emt 0:00:13]} 2. Nf3 {[%emt 0:00:10]} Nc6 {[%emt 0:00:04]} 3. d4 {[%emt 0:00:05]} cxd4 {[%emt 0:00:08]} 4. Nxd4 {[%emt 0:00:03]} g6 {[%emt 0:00:20]} 5. c4 {[%emt 0:00:08]} Nf6 {[%emt 0:00:14]} 6. Nc3 {[%emt 0:01:03]} d6 {[%emt 0:00:28]} 7. Be2 {[%emt 0:01:33]} Nxd4 {[%emt 0:00:06]} 8. Qxd4 {[%emt 0:00:04]} Bg7 {[%emt 0:00:08]} 9. Be3 {[%emt 0:00:52]} O-O {[%emt 0:00:13]} 10. Qd2 {[%emt 0:00:11]} Be6 {[%emt 0:00:57]} 11. O-O {[%emt 0:06:35]} a5 {[%emt 0:01:30]} 12. b3 {[%emt 0:01:51]} a4 {[%emt 0:02:10]} 13. f3 {[%emt 0:03:09]} axb3 {[%emt 0:07:43]} 14. axb3 {[%emt 0:00:10]} Nd7 {[%emt 0:00:41]} 15. Rxa8 {[%emt 0:08:30]} Qxa8 {[%emt 0:00:47]} 16. Na4 {[%emt 0:03:25]} b5 {[%emt 0:06:19]} 17. cxb5 {[%emt 0:03:14]} Bxb3 {[%emt 0:04:29]} 18. Nb6 {[%emt 0:04:08]} Nxb6 {[%emt 0:04:39]} 19. Bxb6 {[%emt 0:00:06]} Qb7 {[%emt 0:03:30]} 20. Be3 {[%emt 0:05:42]} f5 {[%emt 0:06:04]} 21. Qb4 {[%emt 0:09:42]} Be6 {[%emt 0:06:32]} 22. Rc1 {[%emt 0:06:30]} Rc8 {[%emt 0:15:45]} 23. Rxc8+ {[%emt 0:03:34]} Bxc8 {[%emt 0:04:37]} 24. Bc4+ {[%emt 0:02:27]} Kf8 {[%emt 0:00:41]} 25. Bd5 {[%emt 0:10:04]} Qb8 {[%emt 0:03:55]} 26. b6 {[%emt 0:02:39]} Bb7 {[%emt 0:15:12]} 27. Qa5 {[%emt 0:06:09]} fxe4 {[%emt 0:03:52]} 28. Bxb7 {[%emt 0:06:00]} Qxb7 {[%emt 0:00:14]} 29. Qa7 {[%emt 0:00:32]} Qd5 {[%emt 0:02:49]} 30. b7 {[%emt 0:00:18]} Qd1+ {[%emt 0:00:05]} 31. Kf2 {[%emt 0:00:02]} Qc2+ {[%emt 0:00:45]} 32. Kg3 {[%emt 0:00:11]} Be5+ {[%emt 0:00:35]} 33. f4 {[%emt 0:00:34]} Bxf4+ {[%emt 0:02:37]} 34. Bxf4 {[%emt 0:02:02]} Qc3+ {[%emt 0:00:43]} 35. Be3 {[%emt 0:01:21]} Qe5+ {[%emt 0:00:47]} 36. Kf2 {[%emt 0:04:49]} Qb2+ {[%emt 0:01:29]} 37. Ke1 {[%emt 0:00:43]} Qb1+ {[%emt 0:00:53]} 38. Ke2 {[%emt 0:00:32]} Qb5+ {[%emt 0:03:29]} 39. Kf2 {[%emt 0:00:14]} Qb2+ {[%emt 0:00:19]} 40. Kg3 {[%emt 0:00:09]} Qe5+ {[%emt 0:00:24]} 41. Bf4 {[%emt 0:00:12]} Qc3+ {[%emt 0:00:41]} 42. Kh4 {[%emt 0:01:35]} Qe1+ {[%emt 0:04:09]} 43. Kh3 {[%emt 0:15:56]} 1-0

[Event "16th HSG Open-A 2022"]
[Site "Hilversum"]
[Date "2022.06.17"]
[Round "2.1"]
[White "Beerdsen, Thomas"]
[Black "Vlaming, Jos"]
[Result "1-0"]
[ECO "B15"]
[WhiteElo "2497"]
[BlackElo "2111"]
[Annotator "TA"]
[PlyCount "29"]
[EventDate "2022.06.17"]
[EventCountry "NED"]
[SourceTitle "playchess.com"]
[Source "ChessBase"]
[SourceQuality "1"]
[TimeControl "6600+10"]

{[%evp 11,29,21,51,18,25,15,27,28,47,35,50,35,92,67,812,783,1032,745,695,649]} 1. e4 {[%emt 0:00:05][%cal Be2e4,Be4e5][%mdl 32]} g6 {[%emt 0:00:18]} 2. d4 {[%emt 0:00:07]} Bg7 {[%emt 0:00:01]} 3. Nc3 {[%emt 0:00:38]} c6 {[%emt 0:00:03]} 4. Nf3 {[%emt 0:00:11]} d5 {[%emt 0:00:05]} 5. h3 {[%emt 0:00:09]} Nf6 {[%emt 0:00:13]} 6. e5 {[%emt 0:00:08]} Ne4 {[%emt 0:00:11]} 7. Be2 {[%emt 0:00:22] [#] B15: Caro-Kann: 3 Nc3: 3...g6 and 3...dxe4 4 Nxe4 Nf6 5 Nxf6+ exf6.} Nxc3 $146 {[%emt 0:03:33]} ({Predecessor:} 7... O-O 8. O-O c5 9. Be3 Nc6 10. dxc5 Nxc3 11. bxc3 Nxe5 12. Nxe5 Bxe5 13. Bd4 Bf4 14. c4 e5 {½-½ (59) Tsarsitalidis,K (1851)-Chatzieleftheriou,A (2012) Rio 2018}) 8. bxc3 {[%emt 0:00:05]} O-O {[%emt 0:00:15][%cal Oc6c5]} 9. h4 {[%emt 0:00:12][%cal Bh3h4,Bh4h5,Bh5g6,Bg6h7][%mdl 32] White has an edge.} c5 {[%emt 0:01:26]} 10. h5 {[%emt 0:00:18]} ({Of course not} 10. dxc5 Nc6 $11) 10... Nc6 {[%emt 0:04:18]} 11. Bd2 {[%emt 0:17:21]} Bg4 {[%emt 0:15:53]} ({Better is} 11... Qc7 $14) 12. hxg6 {[%emt 0:02:07]} f6 {[%emt 0:15:59][%mdl 8192]} (12... fxg6 $14 13. Ng5 Bxe2 14. Qxe2 cxd4) 13. gxh7+ $18 {[%emt 0:01:24] White is clearly winning.} Kf7 {[%emt 0:01:44] [#]} 14. Ng5+ $1 {[%emt 0:00:20][%mdl 512]} fxg5 {[%emt 0:00:25]} 15. Bxg4 {[%emt 0:00:08] White took control after the opening.  Weighted Error Value: White=0.21 (precise) /Black=0.30} 1-0

[Event "16th HSG Open-A 2022"]
[Site "Hilversum"]
[Date "2022.06.17"]
[Round "2.2"]
[White "Gilmanov, Mansur"]
[Black "Slagboom, Leandro"]
[Result "1-0"]
[ECO "D00"]
[WhiteElo "2390"]
[BlackElo "1997"]
[Annotator "TA"]
[PlyCount "71"]
[EventDate "2022.06.17"]
[EventCountry "NED"]
[SourceTitle "playchess.com"]
[Source "ChessBase"]
[SourceQuality "1"]
[TimeControl "6600+10"]

{[%evp 9,71,-6,0,0,0,-2,0,0,0,-24,-34,-29,0,-38,-45,-63,0,-35,0,0,0,0,61,56,63,59,168,145,225,225,348,166,342,78,319,267,281,276,547,547,532,366,339,271,271,291,289,252,289,244,277,291,290,202,608,338,475,470,468,459,507,491,1273,1262]} 1. d4 {[%emt 0:00:09]} d5 {[%emt 0:00:08]} 2. e3 {[%emt 0:00:32]} c5 {[%emt 0:01:10]} 3. dxc5 {[%emt 0:01:43]} Qa5+ {[%emt 0:06:27]} 4. Bd2 {[%emt 0:03:16]} Qxc5 {[%emt 0:00:09] [#]} 5. Bc3 $146 {[%emt 0:00:07]} ({Predecessor:} 5. a3 Qc7 6. c3 Nf6 7. Be2 g6 8. Nf3 Bg7 9. O-O O-O 10. Be1 e6 11. Nbd2 {½-½ (55) Bester,K (752)-Bortnicker,J (832) LSS email 2015}) 5... Nc6 {[%emt 0:00:54]} 6. Nd2 {[%emt 0:00:49] D00: 1 d4 d5: Unusual lines.} e5 {[%emt 0:02:15]} 7. Ngf3 {[%emt 0:01:34]} f6 {[%emt 0:03:39]} 8. Nb3 {[%emt 0:05:02] The position is equal.} Qd6 {[%emt 0:00:34]} 9. Be2 {[%emt 0:11:01]} Be6 {[%emt 0:00:55]} 10. O-O {[%emt 0:00:44]} O-O-O {[%emt 0:02:54]} 11. a4 {[%emt 0:01:12]} g5 {[%emt 0:02:35]} 12. Na5 {[%emt 0:09:10] Strongly threatening Nxc6.} h5 {[%emt 0:08:33]} (12... Nge7 $15) 13. b4 {[%emt 0:05:31]} Nxa5 {[%emt 0:03:50]} 14. bxa5 {[%emt 0:01:44][%cal Oa5a6]} a6 {[%emt 0:01:47]} 15. Rb1 {[%emt 0:00:59] Hoping for Rb6.} Ne7 {[%emt 0:01:36]} (15... Qc7 $1 $11 16. Qd2 Bc5) 16. Rb6 $14 {[%emt 0:11:55]} Nc6 {[%emt 0:02:00]} 17. Bb4 $36 {[%emt 0:01:04][%mdl 2048] White fights for an advantage.} Qd7 {[%emt 0:06:50]} (17... Qxb4 $14 18. Rxb4 Bxb4) 18. Bxf8 $18 {[%emt 0:00:44]} Rdxf8 {[%emt 0:02:21]} (18... Rhxf8 $16 19. Qd2 g4) 19. Qd2 {[%emt 0:00:31]} Rf7 {[%emt 0:17:22]} (19... g4 {was worth a try.}) 20. Rfb1 {[%emt 0:02:10]} (20. Qc3 $142 {[%cal Oe2a6] And now Bxa6! would win.} Kb8 21. Bxa6) 20... Qe8 $2 {[%emt 0:08:19]} (20... Qd6 {is a better defense.}) 21. Ne1 $2 {[%emt 0:05:58]} (21. e4 $18 {is more deadly.} d4 22. c3) 21... Nd8 $2 {[%emt 0:09:05] A mistake that costs the game.} (21... Rc7 $16) 22. Nd3 {[%emt 0:12:20][%cal Be1d3,Bd3b4,Bb4a6,Ba6c7,Bc7d5,Bd5f6,Bf6e4,Be4d6][%mdl 32]} Rc7 {[%emt 0:01:10] Prevents Nc5.} 23. Nb4 {[%emt 0:04:45][%cal Ob4a6]} Qxa4 $2 {[%emt 0:06:07] [#]} (23... Qe7 24. Nxd5 Bxd5) 24. Nxa6 $1 {[%emt 0:15:32][%mdl 512]} Qxc2 {[%emt 0:01:54] [#]} 25. Qb4 {[%emt 0:03:39]} Bf5 {[%emt 0:08:57]} 26. Nxc7 {[%emt 0:02:16] Chess con chili.} Qxb1+ {[%emt 0:00:31]} 27. Qxb1 {[%emt 0:00:08]} Bxb1 {[%emt 0:00:03]} 28. Nxd5 {[%emt 0:00:46]} Ba2 {[%emt 0:00:28]} 29. Nxf6 {[%emt 0:01:03]} Bf7 {[%emt 0:01:53]} 30. Ne4 {[%emt 0:00:40]} g4 {[%emt 0:00:30]} 31. a6 {[%emt 0:00:57]} Kc7 $2 {[%emt 0:00:41]} (31... bxa6 32. Rxa6 (32. Bxa6+ Kc7 $16) 32... Kc7 33. Ra7+ Kb6) 32. axb7 {[%emt 0:00:29]} ({Less strong is} 32. a7 Nc6 33. Rb5 Ra8 $14) 32... Nxb7 {[%emt 0:00:16] [#]} (32... Nc6 $142) 33. Rxb7+ $1 {[%emt 0:00:17][%mdl 512] White is clearly winning.} Kxb7 {[%emt 0:00:05]} 34. Nd6+ {[%emt 0:00:04]} Kc6 {[%emt 0:00:16]} 35. Nxf7 {[%emt 0:00:05]} Re8 {[%emt 0:00:26] [#]} (35... Rb8 $142 36. f3 Kd5 37. fxg4 hxg4 38. Bxg4 Rg8) 36. Bb5+ $1 {[%emt 0:00:21][%mdl 512] Weighted Error Value: White=0.46/Black=0.78} 1-0